bitfinex/quotes_ETHUSD_20250519
["timestamp","ask_amount","ask_price","bid_price","bid_amount"]
[1747639054163,4.15672187,2405.8,2405.0,28.426]
[1747639054498,0.05,2405.9,2405.2,4.15765801]
[1747639054796,0.05,2405.9,2405.8,4.15662149]
[1747639054961,0.05,2405.9,2405.8,34.52352149]
[1747639055162,0.05,2405.9,2405.8,34.74913809]
[1747639055796,0.05,2405.9,2405.8,13.83013809]
[1747639056007,0.05,2405.9,2405.7,0.38618776]
[1747639056166,0.05,2405.9,2405.8,4.15662149]
[1747639057285,0.05,2405.9,2405.7,0.38618776]
[1747639057671,4.15662149,2405.8,2405.7,0.38618776]
[1747639057996,4.57728364,2405.8,2405.7,0.38618776]
[1747639058561,0.42066215,2405.8,2405.7,0.38618776]
[1747639058765,4.57728364,2405.8,2405.7,0.38618776]
[1747639058999,4.15680442,2405.7,2405.5,10.458]
[1747639059177,0.42066215,2405.8,2405.3,10.458]
[1747639059379,4.156673,2405.8,2405.3,10.458]
[1747639059581,4.15698032,2405.6,2405.0,17.963]
[1747639059805,4.15722973,2405.5,2405.1,20.909]
[1747639060084,4.15698707,2405.6,2405.1,20.909]
[1747639060284,4.15698707,2405.6,2405.1,25.06681144]
[1747639060486,0.05,2405.9,2405.1,20.909]
[1747639060706,0.05,2405.9,2405.0,17.963]
[1747639060999,4.15682007,2405.7,2405.2,4.15756688]
[1747639061419,0.05,2405.9,2405.8,4.15662149]
[1747639061720,0.05,2405.9,2405.4,4.15731271]
[1747639061721,0.05,2405.9,2405.2,1.3453]
[1747639061881,0.60924845,2405.9,2405.5,4.15702384]
[1747639062068,0.60924845,2405.9,2405.3,25.0654225]
[1747639062272,0.05,2405.9,2405.4,0.04156653]
[1747639062495,0.05,2405.9,2405.3,25.06545695]
[1747639062703,0.05,2405.9,2405.2,1.3453]
[1747639062881,4.15681356,2405.7,2405.2,5.50283851]
[1747639063189,0.05,2405.9,2404.5,4.54504531]
[1747639063190,4.15808764,2405.0,2404.5,4.54497659]
[1747639063389,4.15808764,2405.0,2404.5,0.38618776]
[1747639063390,4.15834996,2404.8,2404.5,0.38618776]
[1747639063677,1.465,2405.3,2404.5,0.38618776]
[1747639063870,4.15834996,2404.8,2404.5,10.84418776]
[1747639064118,4.15834996,2404.8,2404.5,0.38618776]
[1747639064471,1.465,2405.3,2404.5,0.38618776]
[1747639064703,4.15774532,2405.2,2404.6,4.15859031]
[1747639064903,5.62252295,2405.3,2404.5,0.38618776]
[1747639065079,5.62252295,2405.3,2404.7,4.44791271]
[1747639065080,4.15776078,2405.2,2404.7,4.44791271]
[1747639065279,1.465,2405.3,2404.8,20.912]
[1747639065587,1.4326,2405.8,2405.4,4.15722736]
[1747639065907,1.4326,2405.8,2405.4,20.913]
[1747639066209,4.15679428,2405.7,2405.4,20.913]
[1747639066506,0.56393943,2405.7,2405.3,10.458]
[1747639066803,5.58928688,2405.8,2405.2,25.06553593]
[1747639067005,1.4326,2405.8,2405.2,20.908]
[1747639067315,4.15714366,2405.5,2405.3,10.458]
[1747639067608,1.4326,2405.8,2405.2,14.61565308]
[1747639067906,0.05,2405.9,2405.6,4.15686275]
[1747639068072,0.05,2405.9,2405.3,4.46659256]
[1747639068276,0.05,2405.9,2405.4,4.15714789]
[1747639068477,4.2064492,2405.9,2405.4,4.15714789]
[1747639069121,4.15662149,2405.8,2405.4,10.449]
[1747639069324,5.04277023,2405.9,2405.4,14.60621669]
[1747639069616,0.05,2405.9,2405.4,14.60628478]
[1747639069781,0.05,2405.9,2405.4,10.449]
[1747639069976,4.15671142,2405.8,2405.5,20.898]
[1747639070183,4.15710292,2405.6,2405.2,17.953]
[1747639070381,4.15722907,2405.5,2405.3,10.449]
[1747639070713,4.15808898,2405.0,2404.8,0.28942613]
[1747639071019,4.15810403,2405.0,2404.8,0.28942613]
[1747639071212,4.15817705,2404.9,2404.8,0.28942613]
[1747639071518,5.63377705,2404.9,2404.8,0.28942613]
[1747639073021,4.15721698,2405.5,2405.0,4.1578813]
[1747639073317,1.4701,2405.8,2404.5,22.11083827]
[1747639073502,4.15785964,2405.1,2404.6,20.897]
[1747639073683,1.4701,2405.8,2404.5,17.952]
[1747639073879,1.4593,2405.1,2404.5,22.11083997]
[1747639074076,1.4593,2405.6,2404.5,17.952]
[1747639074281,1.4593,2405.6,2404.5,22.11075486]
[1747639074282,4.15808706,2405.0,2404.5,22.11075486]
[1747639074708,4.15679428,2405.7,2404.5,22.11075486]
[1747639074709,1.372,2405.5,2404.6,4.15869583]
[1747639074907,0.5528992,2405.4,2404.5,17.952]
[1747639075221,4.15869583,2404.6,2404.5,28.402]
[1747639075427,4.15938773,2404.2,2404.1,0.28942613]
[1747639075584,1.372,2404.9,2404.1,0.28942613]
[1747639075785,4.15852289,2404.7,2404.1,0.28942613]
[1747639075993,4.15913577,2404.4,2404.1,0.28942613]
[1747639076283,1.4622,2405.3,2404.3,1.4534]
[1747639076485,4.20662117,2405.9,2404.4,10.487]
[1747639076486,1.3721,2405.6,2404.4,10.487]
[1747639076724,4.1570224,2405.6,2404.9,4.15805167]
[1747639076886,1.4221,2405.9,2405.0,19.4064]
[1747639077085,1.4221,2405.9,2405.3,4.15740381]
[1747639077086,4.15678621,2405.8,2405.3,4.15740381]
[1747639077386,5.57856471,2405.9,2405.1,25.10473233]
[1747639077387,0.05,2405.9,2405.7,4.15678504]
[1747639077608,0.05,2405.9,2405.8,10.451]
[1747639078532,0.05,2405.9,2405.8,14.60762149]
[1747639079241,0.05,2405.9,2405.8,10.451]
[1747639079447,0.05,2405.9,2405.8,25.07862149]
[1747639080451,0.05,2405.9,2405.8,34.82215993]
[1747639080646,0.05,2405.9,2405.8,37.97526793]
[1747639080827,0.04155,2406.8,2406.7,5.4988671]
[1747639081129,0.05,2406.9,2406.8,12.20629446]
[1747639081289,0.05,2406.9,2406.8,31.98278578]
[1747639081812,0.05,2406.9,2406.8,59.70949178]
[1747639082113,4.15236572,2408.3,2407.2,8.0]
[1747639082301,4.15236572,2408.3,2407.1,12.15437663]
[1747639082302,4.152427,2408.3,2407.6,4.15336959]
[1747639082506,4.15216781,2408.4,2407.6,17.952]
[1747639082722,5.49907594,2408.7,2407.6,17.952]
[1747639082723,1.3474,2408.7,2407.6,17.952]
[1747639082922,4.15334136,2407.7,2407.6,17.952]
[1747639083229,1.3657,2408.4,2407.6,17.952]
[1747639083431,4.15273114,2408.1,2407.7,10.51]
[1747639083731,4.15242083,2408.3,2407.7,10.51]
[1747639083931,4.1523151,2408.3,2407.6,22.10539046]
[1747639084116,4.15284285,2408.0,2407.7,20.949]
[1747639084320,4.15272447,2408.1,2407.6,17.952]
[1747639084529,1.3657,2408.4,2407.6,17.952]
[1747639085060,5.58050786,2408.8,2407.7,5.5125945]
[1747639085230,5.58054886,2408.8,2407.8,4.19469196]
[1747639085425,4.15169673,2408.7,2407.8,4.15316886]
[1747639085591,4.15145177,2408.8,2407.8,25.09816886]
[1747639085799,0.05,2408.9,2407.8,33.09816886]
[1747639085995,4.15219488,2408.4,2407.7,1.3594]
[1747639086199,4.15234378,2408.3,2407.7,1.3594]
[1747639086399,4.15146079,2408.8,2407.8,25.13216886]
[1747639086697,4.15222189,2408.4,2407.8,4.15316886]
[1747639087050,0.05,2408.9,2407.8,25.12516886]
[1747639087359,4.151583,2408.8,2407.8,25.12516886]
[1747639087541,0.05,2408.9,2407.8,25.13116886]
[1747639088045,4.15163548,2408.7,2407.8,33.12416886]
[1747639088213,4.15154441,2408.8,2407.8,33.12416886]
[1747639088409,4.15146617,2408.8,2407.8,33.12416886]
[1747639088753,0.05,2408.9,2407.8,4.15316886]
[1747639088898,1.3789,2408.4,2407.8,20.942]
[1747639089094,4.15281537,2408.1,2407.6,18.22473612]
[1747639089452,4.15334136,2407.7,2407.6,0.28773612]
[1747639089610,5.9721755,2407.7,2407.6,0.28773612]
[1747639089995,5.55184136,2407.7,2407.6,0.28773612]
[1747639090430,1.3985,2407.7,2406.9,0.31384894]
[1747639090609,4.15351387,2407.6,2407.0,20.935]
[1747639090824,1.3985,2407.7,2407.0,20.935]
[1747639091028,0.05,2407.9,2407.0,25.08949873]
[1747639091199,0.05,2407.9,2407.6,4.15346909]
[1747639091395,0.05,2407.9,2407.8,4.15316886]
[1747639091617,0.05,2407.9,2407.8,20.954]
[1747639091817,0.05,2407.9,2407.8,25.10716886]
[1747639092945,0.05,2407.9,2407.8,25.10016886]
[1747639093141,0.05,2407.9,2407.7,4.15324635]
[1747639093348,0.05,2407.9,2407.8,25.10016886]
[1747639094102,0.05,2407.9,2407.8,26.46596886]
[1747639094718,0.05,2407.9,2407.8,16.88006886]
[1747639095025,0.05,2407.9,2407.8,37.11606886]
[1747639095226,0.05,2407.9,2407.8,16.19206886]
[1747639095423,0.05,2407.9,2407.8,26.43096886]
[1747639096354,0.05,2407.9,2407.8,5.51896886]
[1747639096644,0.05,2407.9,2407.8,25.05616886]
[1747639097125,0.05,2407.9,2407.8,4.15316886]
[1747639097330,0.05,2407.9,2407.8,33.04416886]
[1747639097507,0.05,2407.9,2407.8,34.42846886]
[1747639097835,0.05,2407.9,2407.8,34.42946886]
[1747639098002,0.05,2407.9,2407.8,26.41946886]
[1747639098654,0.05,2407.9,2407.8,5.53746886]
[1747639098849,0.05,2407.9,2407.8,26.42846886]
[1747639099009,0.05,2407.9,2407.8,26.42246886]
[1747639100441,0.05,2407.9,2407.8,36.56529086]
[1747639100647,0.05,2407.9,2407.8,36.56329086]
[1747639100817,0.05,2407.9,2407.8,34.41946886]
[1747639101019,0.05,2407.9,2407.8,37.96934086]
[1747639101545,0.05,2407.9,2407.8,37.57719486]
[1747639101742,0.05,2407.9,2407.8,51.51125455]
[1747639101910,0.05,2407.9,2407.8,51.67783855]
[1747639103051,0.05,2407.9,2407.8,16.29583855]
[1747639103240,0.05,2407.9,2407.8,34.80313855]
[1747639103663,0.05,2407.9,2407.8,39.04993455]
[1747639103857,0.05,2407.9,2407.8,39.04793455]
[1747639104056,0.05,2407.9,2407.8,39.59793455]
[1747639104270,0.005,2408.3,2408.2,4.15247902]
[1747639104414,0.005,2408.3,2408.2,26.50137902]
[1747639104737,0.005,2408.3,2408.2,39.24548534]
[1747639104950,0.005,2408.3,2408.2,26.81153734]
[1747639105152,0.005,2408.3,2408.2,16.50918877]
[1747639105351,0.0026,2408.3,2408.2,37.38918877]
[1747639105868,0.05,2408.9,2408.8,4.1514447]
[1747639106191,0.05,2408.9,2408.8,46.8299017]
[1747639106330,0.05,2408.9,2408.8,46.7157847]
[1747639106533,0.05,2408.9,2408.8,54.8377847]
[1747639106770,0.05,2408.9,2408.8,33.9577847]
[1747639107074,0.05,2408.9,2408.8,15.6109447]
[1747639107372,0.05,2408.9,2408.8,52.61636781]
[1747639107587,0.05,2408.9,2408.8,55.32954381]
[1747639107945,0.05,2408.9,2408.8,34.45354381]
[1747639108362,0.45037392,2410.2,2410.1,4.14920542]
[1747639108532,0.45037392,2410.2,2410.1,20.876]
[1747639109173,0.45037392,2410.2,2410.1,10.441]
[1747639109354,0.45037392,2410.2,2409.9,17.928]
[1747639109568,0.45037392,2410.2,2410.1,20.876]
[1747639109732,0.45037392,2410.2,2409.9,22.07750686]
[1747639109965,0.45037392,2410.2,2410.0,20.871]
[1747639110468,0.45037392,2410.2,2409.9,18.24011102]
[1747639110666,1.4567,2410.0,2409.2,17.924]
[1747639110868,1.4567,2410.0,2409.3,20.871]
[1747639111071,1.4567,2410.0,2409.4,20.871]
[1747639111235,4.14986158,2409.8,2409.2,17.924]
[1747639111558,4.15008677,2409.6,2409.2,17.924]
[1747639111765,4.1500853,2409.6,2409.3,20.871]
[1747639111979,0.56059446,2409.9,2409.3,20.871]
[1747639112177,4.15031512,2409.5,2409.4,20.871]
[1747639112335,4.15103516,2409.1,2408.6,2.38232773]
[1747639112556,4.1514447,2408.8,2408.7,38.795]
[1747639112786,5.61531705,2408.7,2408.6,0.77211389]
[1747639113089,6.59199478,2408.7,2408.6,0.77211389]
[1747639113589,1.4637,2408.7,2408.6,0.77211389]
[1747639114192,1.3843,2409.1,2408.6,0.77211389]
[1747639114381,1.3843,2409.4,2408.7,20.87]
[1747639114889,5.53518245,2409.2,2408.8,10.439]
[1747639115090,1.3843,2409.2,2408.8,14.59039862]
[1747639115395,5.53509351,2409.2,2408.9,0.28953433]
[1747639115556,1.3843,2409.2,2408.9,0.28953433]
[1747639115913,5.5350742,2409.2,2408.9,0.28953433]
[1747639116058,1.3843,2409.2,2408.9,0.28953433]
[1747639116254,1.3843,2409.2,2409.0,4.15110004]
[1747639116454,4.59953786,2410.2,2408.9,0.28953433]
[1747639116455,1.3843,2409.6,2408.9,0.28953433]
[1747639116895,1.3843,2409.0,2408.9,0.28953433]
[1747639117071,5.53540004,2409.0,2408.9,0.28953433]
[1747639117372,1.3843,2409.0,2408.9,0.28953433]
[1747639117587,4.15058241,2409.4,2408.9,0.28953433]
[1747639117914,1.3843,2409.3,2409.0,20.87]
[1747639118378,4.15075543,2409.2,2409.1,10.72853433]
[1747639118578,1.3843,2409.3,2409.1,10.72853433]
[1747639118811,1.3843,2409.3,2409.1,0.28953433]
[1747639119175,5.53497153,2409.3,2409.1,0.28953433]
[1747639119375,5.53496931,2409.3,2409.1,0.28953433]
[1747639119597,1.3843,2409.3,2409.1,0.28953433]
[1747639120097,5.53491874,2409.3,2409.1,10.72853433]
[1747639120300,1.3843,2409.3,2409.1,0.28953433]
[1747639120488,5.53497976,2409.3,2409.1,10.72853433]
[1747639120675,1.3843,2409.3,2409.1,10.72853433]
[1747639120878,1.3843,2409.3,2409.1,0.28953433]
[1747639121314,1.3834,2409.7,2409.1,4.44029941]
[1747639121515,0.45037392,2410.2,2409.5,4.15022659]
[1747639121516,4.14948408,2410.0,2409.5,4.15022659]
[1747639121721,1.3536,2410.1,2409.6,25.01899088]
[1747639121880,4.1494766,2410.0,2409.7,10.439]
[1747639122084,1.3536,2410.1,2409.7,10.439]
[1747639122305,0.45037392,2410.2,2409.4,4.15023956]
[1747639122503,4.59946752,2410.2,2409.6,4.1500664]
[1747639122710,4.59946752,2410.2,2409.7,4.14989417]
[1747639122899,4.59946752,2410.2,2409.6,4.1500664]
[1747639122900,4.14954977,2409.9,2409.8,10.439]
[1747639123094,1.46956767,2410.1,2409.1,0.28953433]
[1747639123316,4.15066636,2409.3,2409.2,10.439]
[1747639123536,5.57185066,2409.4,2409.1,0.28953433]
[1747639123819,4.1506822,2409.3,2409.2,21.15853433]
[1747639123983,4.70788042,2409.3,2409.2,0.28953433]
[1747639124381,1.4213,2409.4,2409.2,0.28953433]
[1747639125082,1.4213,2409.4,2409.3,10.439]
[1747639125311,4.14972475,2409.8,2409.3,10.439]
[1747639125516,4.14997559,2409.7,2409.2,0.28953433]
[1747639125687,1.4347,2410.1,2409.4,25.01830964]
[1747639125877,2.09789029,2410.1,2409.4,20.868]
[1747639126078,2.09789029,2410.1,2409.2,0.28953433]
[1747639126079,4.1499237,2409.7,2409.2,0.28953433]
[1747639126314,2.09789029,2410.1,2409.4,4.15034542]
[1747639126619,1.4347,2410.1,2409.8,4.1496232]
[1747639126822,1.4347,2410.1,2409.2,0.28953433]
[1747639126823,1.4347,2410.1,2409.5,20.868]
[1747639127117,0.45037392,2410.2,2409.2,4.44026585]
[1747639127292,0.45037392,2410.2,2409.8,4.14963502]
[1747639127497,4.14940415,2410.0,2409.6,0.28953433]
[1747639127679,5.60577594,2409.9,2409.6,10.72853433]
[1747639127879,1.4561,2409.9,2409.6,14.87859704]
[1747639128093,1.4561,2409.9,2409.7,10.438]
[1747639128621,4.14989417,2409.7,2409.6,0.28953433]
[1747639128796,1.4561,2409.9,2409.6,0.28953433]
[1747639128997,1.4561,2409.9,2409.8,4.14972196]
[1747639129620,1.79347392,2410.2,2409.6,0.28953433]
[1747639129835,1.79347392,2410.2,2409.8,4.14963599]
[1747639130117,1.79347392,2410.2,2409.9,4.14952549]
[1747639130323,1.79347392,2410.2,2409.7,20.856]
[1747639130735,0.45037392,2410.2,2410.1,4.14920542]
[1747639131197,0.45037392,2410.2,2410.1,20.854]
[1747639131522,0.45037392,2410.2,2410.1,25.00220542]
[1747639132413,0.45037392,2410.2,2410.1,21.16254997]
[1747639132584,0.45037392,2410.2,2410.1,20.853]
[1747639132785,0.45037392,2410.2,2410.1,10.427]
[1747639133211,0.45037392,2410.2,2409.9,22.35899949]
[1747639133411,0.45037392,2410.2,2410.0,14.57630935]
[1747639133585,0.45037392,2410.2,2410.1,10.427]
[1747639134719,0.45037392,2410.2,2409.9,18.20953433]
[1747639134925,0.45037392,2410.2,2410.0,25.00029916]
[1747639135150,0.45037392,2410.2,2410.0,20.851]
[1747639135351,0.45037392,2410.2,2409.9,18.20953433]
[1747639135524,1.4484,2410.1,2409.9,18.20953433]
[1747639135846,6.20248948,2410.1,2409.9,18.20953433]
[1747639136034,4.14937759,2410.0,2409.9,18.20953433]
[1747639136237,1.4484,2410.1,2409.9,18.20953433]
[1747639136427,1.4484,2410.1,2410.0,4.14937759]
[1747639136646,0.45037392,2410.2,2410.0,4.14937759]
[1747639136947,4.59940719,2410.2,2409.9,17.92]
[1747639137150,4.59940719,2410.2,2409.5,0.28953433]
[1747639137151,1.43,2409.8,2409.5,0.28953433]
[1747639137312,1.43,2409.8,2409.6,4.14992599]
[1747639137518,1.43,2409.8,2409.5,10.71553433]
[1747639137712,1.88037392,2410.2,2409.5,10.71553433]
[1747639137942,1.88037392,2410.2,2409.6,4.14999149]
[1747639138148,4.14953606,2410.0,2409.6,10.426]
[1747639138454,0.602991,2410.0,2409.6,10.426]
[1747639138654,6.02948397,2410.2,2409.6,14.5759697]
[1747639138812,1.88037392,2410.2,2409.6,10.426]
[1747639139013,1.88037392,2410.2,2409.6,14.57606346]
[1747639139218,4.14923592,2410.1,2409.7,14.57580784]
[1747639139414,6.02947919,2410.2,2409.8,14.57559756]
[1747639139667,6.02947919,2410.2,2409.8,14.57568004]
[1747639139865,4.14925812,2410.1,2409.8,10.426]
[1747639140022,7.04740546,2410.2,2409.8,10.426]
[1747639140218,7.04727279,2410.2,2409.1,19.57473433]
[1747639140420,4.14969568,2409.9,2409.2,24.99859393]
[1747639140619,4.14928807,2410.1,2409.5,4.15015036]
[1747639140820,4.14928807,2410.1,2409.2,20.848]
[1747639140821,1.88037392,2410.2,2409.3,0.04150004]
[1747639141047,1.88037392,2410.2,2409.6,4.14996653]
[1747639141286,4.14957615,2409.9,2409.4,4.15026944]
[1747639141415,4.14957615,2409.9,2409.1,19.57473433]
[1747639141416,1.4182,2409.6,2409.1,18.20853433]
[1747639141729,1.3866,2409.9,2409.5,4.15013772]
[1747639141926,1.83697392,2410.2,2409.7,4.14979922]
[1747639142251,1.83697392,2410.2,2409.7,4.14982519]
[1747639142455,1.83697392,2410.2,2409.8,10.426]
[1747639142753,4.14922113,2410.1,2409.8,10.426]
[1747639142964,4.14937759,2410.0,2409.4,1.3478]
[1747639143136,1.4018,2410.0,2409.4,10.426]
[1747639143335,1.4018,2410.0,2409.1,18.20853433]
[1747639143648,4.15008271,2409.6,2409.2,10.426]
[1747639143821,5.5511882,2410.0,2409.2,10.426]
[1747639144022,4.15038134,2409.5,2409.3,10.426]
[1747639144223,4.1503754,2409.5,2409.3,10.426]
[1747639144440,4.15026628,2409.5,2409.3,10.426]
[1747639144651,4.70467563,2409.9,2409.1,18.20853433]
[1747639144829,5.52885543,2409.2,2409.1,0.28953433]
[1747639145041,1.3781,2409.2,2409.1,0.28953433]
[1747639145232,5.52885543,2409.2,2409.1,0.28953433]
[1747639145455,4.1509384,2409.1,2408.7,10.426]
[1747639145753,4.15096854,2409.1,2408.7,14.57754184]
[1747639145955,4.15127236,2408.9,2408.8,10.427]
[1747639146119,4.15120235,2409.0,2408.8,10.427]
[1747639146324,4.15121562,2409.0,2408.8,10.427]
[1747639146537,4.15121562,2409.0,2408.5,0.28953433]
[1747639146741,1.3781,2409.2,2408.6,20.848]
[1747639146941,4.1512225,2409.0,2408.7,20.847]
[1747639147258,4.15136905,2408.9,2408.8,10.427]
[1747639147648,4.1513471,2408.9,2408.8,10.427]
[1747639148151,0.83025178,2408.9,2408.3,0.28953433]
[1747639148462,5.55074342,2408.9,2408.3,0.28953433]
[1747639148777,1.3994,2409.2,2408.5,4.15186244]
[1747639148923,1.3994,2409.2,2408.4,19.2737]
[1747639149123,1.3994,2409.2,2408.5,20.848]
[1747639149124,4.15136165,2408.9,2408.5,20.848]
[1747639149324,4.15152122,2408.8,2408.4,22.07310079]
[1747639149550,4.1513667,2408.9,2408.6,20.848]
[1747639149753,4.15135881,2408.9,2408.5,10.428]
[1747639150174,4.1512417,2409.0,2408.6,10.428]
[1747639150383,4.15113644,2409.0,2408.6,14.57968355]
[1747639150561,4.15143606,2408.9,2408.6,10.428]
[1747639150860,4.15119619,2409.0,2408.6,10.428]
[1747639151185,4.15127772,2408.9,2408.6,10.428]
[1747639151337,4.15148695,2408.8,2408.6,10.428]
[1747639151669,4.15118678,2409.0,2408.6,10.428]
[1747639151825,4.15153548,2408.8,2408.7,10.428]
[1747639152160,4.15136101,2408.9,2408.7,10.428]
[1747639152524,4.1514447,2408.8,2408.4,17.921]
[1747639152743,4.15136637,2408.9,2408.5,10.428]
[1747639153170,4.1514481,2408.8,2408.4,17.921]
[1747639153371,4.1514481,2408.8,2408.5,10.428]
[1747639153525,4.15169593,2408.7,2408.6,10.428]
[1747639153720,4.15093619,2409.1,2408.6,10.428]
[1747639153721,1.3994,2409.0,2408.6,10.428]
[1747639153929,1.3994,2409.0,2408.1,0.28953433]
[1747639153930,1.4224,2408.8,2408.1,0.28953433]
[1747639154155,4.15223087,2408.4,2408.1,0.28953433]
[1747639154355,1.4224,2408.8,2408.1,0.28953433]
[1747639154541,0.55503362,2409.0,2408.1,0.28953433]
[1747639154542,5.60687902,2408.2,2408.1,0.28953433]
[1747639154968,5.60687902,2408.2,2407.6,10.428]
[1747639154969,4.15299638,2407.9,2407.8,0.28953433]
[1747639155256,5.60739638,2407.9,2407.8,0.28953433]
[1747639156632,10.418,2408.3,2407.8,0.28953433]
[1747639156633,1.364,2408.3,2407.8,0.28953433]
[1747639156942,1.364,2408.3,2408.0,4.1527221]
[1747639157178,1.364,2408.3,2407.8,14.87160105]
[1747639157328,1.364,2408.6,2408.3,4.1521497]
[1747639157878,4.15041089,2409.4,2408.3,11.9153221]
[1747639158087,0.96644895,2409.4,2408.7,4.15152305]
[1747639158380,4.15041089,2409.4,2408.3,1.4438]
[1747639158662,1.364,2409.5,2408.3,4.15214375]
[1747639158663,1.336,2408.9,2408.3,4.15214375]
[1747639158969,1.336,2408.9,2408.5,4.15179207]
[1747639159171,4.15151819,2408.8,2408.4,10.418]
[1747639159327,5.4873498,2408.9,2408.4,4.15205138]
[1747639159534,4.15169962,2408.7,2408.3,10.418]
[1747639159726,4.15157252,2408.8,2408.3,14.57015879]
[1747639159962,4.15157252,2408.8,2408.4,4.15212187]
[1747639160630,4.15162149,2408.7,2408.3,14.57021489]
[1747639160830,4.15162149,2408.7,2408.2,10.418]
[1747639161032,4.15162149,2408.7,2408.3,4.15229266]
[1747639161864,4.15162149,2408.7,2408.2,14.5703892]
[1747639162086,4.15199512,2408.5,2408.1,17.926]
[1747639162228,1.3928,2408.3,2408.1,17.926]
[1747639162433,5.54511399,2408.3,2407.7,4.15324634]
[1747639162643,0.04826767,2408.2,2407.6,0.28953433]
[1747639162844,4.15254932,2408.2,2407.7,4.15324879]
[1747639163065,4.15254932,2408.2,2407.6,4.44297]
[1747639163066,0.55453493,2408.2,2407.6,4.44297]
[1747639163365,0.55453493,2408.2,2407.6,0.28953433]
[1747639163570,5.62314136,2407.7,2407.6,0.28953433]
[1747639163770,1.4698,2407.7,2407.6,0.28953433]
[1747639164342,5.62314136,2407.7,2407.6,0.28953433]
[1747639165378,4.15388244,2407.4,2407.2,0.30508684]
[1747639165673,4.15388244,2407.4,2407.1,0.05]
[1747639165674,4.15391891,2407.4,2407.1,0.05]
[1747639165861,4.15409844,2407.3,2407.1,0.05]
[1747639166048,4.15420405,2407.2,2407.1,0.05]
[1747639166663,5.55640405,2407.2,2407.1,0.05]
[1747639167065,4.15393852,2407.4,2407.1,0.05]
[1747639167251,4.15369525,2407.5,2407.1,0.05]
[1747639167455,5.55523229,2407.9,2407.1,0.05]
[1747639167685,1.59692323,2407.8,2407.1,0.05]
[1747639167989,1.4022,2407.9,2407.1,0.0915425]
[1747639168285,4.15325886,2407.8,2407.3,4.15392471]
[1747639168454,5.55526943,2407.9,2407.4,14.57481892]
[1747639168653,5.55527519,2407.9,2407.4,14.57474607]
[1747639168850,1.4022,2407.9,2407.5,4.15368172]
[1747639169093,5.55529815,2407.9,2407.4,14.57480513]
[1747639169388,4.15321,2407.8,2407.4,10.421]
[1747639169583,4.15321,2407.8,2407.4,14.57485859]
[1747639169584,4.1532264,2407.8,2407.4,14.57485859]
[1747639169755,1.4022,2407.9,2407.1,17.981]
[1747639169959,4.20143653,2407.8,2407.2,10.421]
[1747639170159,4.15403148,2407.3,2407.1,17.981]
[1747639170559,4.15420405,2407.2,2407.1,17.981]
[1747639171066,4.15420405,2407.2,2407.1,0.05]
[1747639171264,5.55457172,2407.2,2407.1,0.05]
[1747639171469,1.3521,2407.1,2406.4,0.28953433]
[1747639171669,4.15484216,2406.9,2406.4,0.28953433]
[1747639171870,4.15454923,2407.0,2406.4,0.28953433]
[1747639172071,4.15454923,2407.0,2406.5,4.15528082]
[1747639172298,4.15505239,2406.8,2406.4,0.28953433]
[1747639172498,1.3521,2407.1,2406.4,10.71053433]
[1747639172795,5.51121242,2406.5,2406.4,0.28953433]
[1747639173001,6.47786836,2406.5,2406.4,0.28953433]
[1747639173776,16.88986836,2406.5,2406.4,0.28953433]
[1747639174195,4.15593051,2406.2,2406.1,0.05]
[1747639174396,5.57853051,2406.2,2406.1,0.05]
[1747639175087,6.5447851,2406.5,2406.1,0.05]
[1747639175294,4.15562157,2406.4,2406.1,0.05]
[1747639175602,4.15562159,2406.4,2406.1,0.05]
[1747639175774,5.57814254,2406.5,2406.1,0.05]
[1747639175975,1.3941,2407.4,2406.4,4.15556702]
[1747639176205,4.15403148,2407.3,2406.3,4.15566238]
[1747639176388,4.15550132,2406.5,2406.3,10.425]
[1747639176595,1.4666,2406.9,2406.1,0.05]
[1747639176800,4.15571297,2406.4,2406.1,10.475]
[1747639176973,1.4666,2406.9,2406.1,10.475]
[1747639176974,5.62140059,2406.9,2406.1,10.475]
[1747639177308,5.62133931,2406.9,2406.1,0.05]
[1747639177600,4.15520153,2406.7,2406.1,0.05]
[1747639177788,0.56213393,2406.8,2406.1,0.05]
[1747639178108,0.55481315,2407.2,2406.4,1.339]
[1747639178109,1.97851315,2407.2,2406.4,1.339]
[1747639178280,1.97851315,2407.2,2406.4,10.425]
[1747639178683,5.57791625,2407.2,2406.7,4.15495112]
[1747639178877,5.5779093,2407.2,2406.6,4.155205]
[1747639179078,1.4237,2407.2,2406.4,10.425]
[1747639179282,1.4237,2407.2,2406.7,4.15494468]
[1747639179478,1.4237,2407.2,2406.4,10.425]
[1747639179678,4.15482647,2406.9,2406.2,4.15593051]
[1747639179868,0.04826767,2406.8,2406.3,10.426]
[1747639180074,4.15516002,2406.7,2406.3,14.5817394]
[1747639180295,0.04826767,2406.8,2406.2,0.28953433]
[1747639180497,4.15571725,2406.4,2406.2,0.28953433]
[1747639180905,4.1557578,2406.3,2406.2,0.28953433]
[1747639181211,5.12839531,2406.3,2406.2,0.28953433]
[1747639182112,1.4149,2406.5,2406.2,0.28953433]
[1747639182310,1.4149,2406.8,2406.2,0.28953433]
[1747639182604,4.15536598,2406.6,2406.1,4.20608137]
[1747639182807,4.1550671,2406.7,2406.2,4.15578171]
[1747639183009,5.56987874,2406.8,2406.3,4.15563255]
[1747639183175,4.15510073,2406.7,2406.3,4.15563255]
[1747639183375,0.97244743,2406.8,2406.4,4.15541646]
[1747639183575,4.15479861,2406.9,2406.3,14.58269338]
[1747639183814,4.15479861,2406.9,2406.4,4.1555851]
[1747639183988,4.1548427,2406.9,2406.3,14.5827343]
[1747639184184,4.15493574,2406.8,2406.3,14.58266257]
[1747639184389,4.15472184,2406.9,2406.4,4.15551084]
[1747639184688,1.3557,2407.1,2406.3,10.427]
[1747639184902,4.15513832,2406.7,2406.3,14.58275635]
[1747639185230,4.1549798,2406.8,2406.3,14.58264772]
[1747639185434,4.15508753,2406.7,2406.3,10.427]
[1747639185742,5.51016767,2407.1,2406.1,0.05]
[1747639186040,4.15587578,2406.3,2406.1,10.477]